bitfinex/quotes_SOLUSD_20260114
["timestamp","ask_amount","ask_price","bid_price","bid_amount"]
[1768393237346,7.6241017,144.24,144.2,2.0669202]
[1768393237549,0.6974599,144.22,144.2,2.0669202]
[1768393238551,7.63041966,144.24,144.19,2.0669202]
[1768393238852,5.19436334,144.23,144.19,2.0669202]
[1768393239054,7.63041966,144.24,144.19,2.0669202]
[1768393239251,5.19439525,144.23,144.19,2.0669202]
[1768393239455,7.63041966,144.24,144.19,2.0669202]
[1768393239631,5.1947518,144.23,144.19,2.0669202]
[1768393239930,7.63041966,144.24,144.19,2.0669202]
[1768393240126,5.1947518,144.23,144.19,2.0669202]
[1768393240326,7.63041966,144.24,144.19,2.0669202]
[1768393240542,5.19519318,144.23,144.19,2.0669202]
[1768393240743,7.63041966,144.24,144.19,2.0669202]
[1768393240953,5.19519496,144.23,144.19,2.0669202]
[1768393241136,7.63041966,144.24,144.19,9.00216014]
[1768393241332,5.19522372,144.23,144.19,9.00216014]
[1768393241545,7.63041966,144.24,144.19,9.00216014]
[1768393241852,5.89313828,144.23,144.19,9.00216014]
[1768393242052,5.19567838,144.22,144.19,9.00216014]
[1768393242254,5.19567838,144.22,144.19,2.0669202]
[1768393243358,7.63041966,144.24,144.19,2.0669202]
[1768393243657,5.19794187,144.23,144.19,2.0669202]
[1768393243951,5.19794187,144.22,144.19,2.0669202]
[1768393244157,7.63041966,144.24,144.19,9.00218415]
[1768393244350,5.19794331,144.23,144.19,9.00218415]
[1768393244657,5.19794331,144.22,144.19,9.00218415]
[1768393244845,7.63041966,144.24,144.19,9.00218415]
[1768393245045,5.1979913,144.23,144.19,9.00218415]
[1768393245247,5.1979913,144.22,144.19,2.0669202]
[1768393245453,7.63041966,144.24,144.19,2.0669202]
[1768393245758,0.6974599,144.22,144.19,2.0669202]
[1768393246558,7.63041966,144.24,144.19,9.00199845]
[1768393246745,5.89549847,144.23,144.19,9.00199845]
[1768393247056,0.1,144.26,144.21,2.0669202]
[1768393247254,0.1,144.26,144.22,2.0669202]
[1768393247455,0.1,144.26,144.22,3.22884051]
[1768393247955,0.1,144.26,144.23,3.22884051]
[1768393248155,0.1,144.26,144.24,3.22884051]
[1768393248940,0.6974599,144.25,144.24,3.22884051]
[1768393250756,0.1,144.26,144.24,3.22884051]
[1768393251066,0.1,144.26,144.24,3.92630041]
[1768393251655,0.1,144.28,144.24,10.85918909]
[1768393252062,0.7974599,144.28,144.24,7.63034858]
[1768393252268,0.7974599,144.28,144.24,10.85918909]
[1768393253464,0.7974599,144.28,144.25,3.22884051]
[1768393253974,0.1,144.28,144.24,6.93288868]
[1768393254147,0.1,144.28,144.26,3.92884464]
[1768393254646,0.7974599,144.28,144.26,3.22884051]
[1768393256161,0.1,144.28,144.26,3.92884464]
[1768393257367,0.1,144.28,144.26,3.22884051]
[1768393257556,0.1,144.28,144.27,0.70000413]
[1768393259570,0.1,144.28,144.27,3.92884464]
[1768393259765,0.6974599,144.31,144.28,3.92884464]
[1768393259958,0.6974599,144.31,144.28,3.86940179]
[1768393260156,7.72671746,144.32,144.28,3.86940179]
[1768393260363,0.7974599,144.32,144.21,41.35035329]
[1768393260563,0.6974599,144.3,144.25,3.22884051]
[1768393260954,0.6974599,144.3,144.25,10.16098091]
[1768393261850,0.6974599,144.3,144.26,3.22884051]
[1768393262053,0.6974599,144.3,144.27,3.22884051]
[1768393262261,0.6974599,144.3,144.27,2.50384051]
[1768393262467,0.6974599,144.3,144.27,2.18931746]
[1768393262662,0.6974599,144.3,144.27,2.88932159]
[1768393262874,0.6974599,144.3,144.28,3.22884051]
[1768393263264,0.5974599,144.29,144.22,18.03387635]
[1768393263461,0.099,144.28,144.24,3.22884051]
[1768393263669,0.099,144.28,144.23,3.22884051]
[1768393263867,10.7565125,144.3,144.24,0.70000413]
[1768393264086,0.5924753,144.28,144.23,3.22884051]
[1768393264382,0.5924753,144.28,144.24,6.9327114]
[1768393266069,10.15941999,144.29,144.25,0.70738815]
[1768393266379,7.02957948,144.29,144.25,0.70738815]
[1768393266979,10.25841999,144.29,144.25,0.70738815]
[1768393269859,7.52359927,144.28,144.23,10.16209477]
[1768393270060,0.10393475,144.27,144.23,10.86948292]
[1768393270581,6.93112397,144.28,144.24,0.70738815]
[1768393270781,0.5924753,144.27,144.23,10.16209477]
[1768393270974,0.099,144.27,144.23,10.86948292]
[1768393271181,6.93112397,144.28,144.24,0.70738815]
[1768393272861,0.099,144.27,144.23,10.16209477]
[1768393273067,6.93112397,144.28,144.24,0.70738815]
[1768393273370,0.5924753,144.27,144.23,10.86948292]
[1768393273984,6.93112397,144.28,144.24,0.70738815]
[1768393274678,10.75697384,144.29,144.24,0.70738815]
[1768393275483,7.52813333,144.29,144.24,0.70738815]
[1768393276991,7.52813333,144.29,144.25,0.70738815]
[1768393277576,6.93067343,144.29,144.25,0.70738815]
[1768393280696,6.93000693,144.3,144.25,0.70738815]
[1768393281000,5.1751906,144.29,144.25,0.70738815]
[1768393281179,6.93000693,144.3,144.25,0.70738815]
[1768393281379,5.17579743,144.29,144.26,0.71188523]
[1768393281585,6.93000693,144.3,144.26,0.71188523]
[1768393281781,7.52699253,144.31,144.26,0.71188523]
[1768393281986,5.17565537,144.3,144.26,0.71188523]
[1768393282182,7.52699253,144.31,144.26,0.71188523]
[1768393282393,5.17580849,144.3,144.27,0.71188523]
[1768393282589,7.52699253,144.31,144.27,0.71188523]
[1768393282794,5.17579791,144.3,144.27,0.71188523]
[1768393282987,7.52699253,144.31,144.27,0.71188523]
[1768393283181,5.17579969,144.3,144.27,0.71188523]
[1768393283381,0.099,144.29,144.26,3.22884051]
[1768393283700,7.52699253,144.31,144.26,3.94072574]
[1768393283920,5.17636822,144.3,144.27,0.71188523]
[1768393284198,0.6974599,144.32,144.28,0.71188523]
[1768393285473,0.1,144.32,144.3,0.71188523]
[1768393285676,0.1,144.32,144.31,0.65188523]
[1768393285892,0.1,144.32,144.31,0.59188523]
[1768393288395,0.24233071,144.32,144.3,3.22884051]
[1768393288702,0.24233071,144.32,144.31,3.22884051]
[1768393288879,0.24233071,144.32,144.3,6.92980237]
[1768393289201,0.24233071,144.32,144.31,3.22884051]
[1768393289399,0.1,144.32,144.31,3.22884051]
[1768393292202,0.1,144.32,144.3,3.94072574]
[1768393294604,0.1,144.32,144.3,0.71188523]
[1768393294785,0.1,144.32,144.3,3.94072574]
[1768393295303,0.14233071,144.32,144.3,3.22884051]
[1768393295602,0.1,144.32,144.3,3.22884051]
[1768393295905,0.1,144.32,144.3,3.90662288]
[1768393297578,0.1,144.32,144.3,10.83662694]
[1768393298511,0.14233071,144.32,144.3,10.15884457]
[1768393298813,0.1,144.32,144.3,10.83662694]
[1768393299810,0.1,144.34,144.31,3.90662288]
[1768393300427,0.1,144.34,144.32,3.22884051]
[1768393301993,0.14233071,144.34,144.32,3.22884051]
[1768393303218,0.1,144.34,144.32,3.90662288]
[1768393303619,0.1,144.34,144.32,3.22884051]
[1768393303918,0.1,144.34,144.32,3.84662288]
[1768393304299,0.1,144.34,144.32,3.90662288]
[1768393304502,0.1,144.34,144.32,3.22884051]
[1768393305528,0.1,144.34,144.32,3.90662288]
[1768393305924,0.1,144.34,144.32,3.22884051]
[1768393307413,0.1,144.34,144.32,2.06373306]
[1768393308510,0.14233071,144.34,144.31,8.99325375]
[1768393310427,0.14233071,144.34,144.31,2.06373306]
[1768393311031,0.04233071,144.33,144.3,8.99355249]
[1768393312134,0.04233071,144.33,144.3,6.92981943]
[1768393312348,0.04233071,144.33,144.3,8.99355249]
[1768393312842,0.14233071,144.34,144.3,7.6076018]
[1768393313029,0.14233071,144.34,144.32,2.06373306]
[1768393313214,0.14233071,144.34,144.31,2.06373306]
[1768393314314,0.04233071,144.33,144.31,2.06373306]
[1768393314516,0.04233071,144.33,144.3,8.99355249]
[1768393314934,0.04233071,144.33,144.31,6.92949453]
[1768393316043,0.04233071,144.33,144.31,8.99322759]
[1768393316419,0.04233071,144.33,144.3,6.93000693]
[1768393316735,0.04233071,144.33,144.3,8.99373999]
[1768393316934,0.04233071,144.33,144.3,6.93000693]
[1768393317140,0.04233071,144.33,144.3,8.99373999]
[1768393317340,0.14233071,144.34,144.31,2.06373306]
[1768393317839,16.46232263,144.35,144.33,2.06373306]
[1768393318216,16.46232263,144.35,144.32,2.06373306]
[1768393319040,16.46232263,144.35,144.32,8.99272787]
[1768393320741,16.46232263,144.35,144.32,9.67051024]
[1768393321645,16.46232263,144.35,144.32,8.99272787]
[1768393323630,16.46232263,144.35,144.31,9.67081202]
[1768393324846,0.04233071,144.34,144.3,9.67134686]
[1768393325637,0.04233071,144.34,144.3,7.6076138]
[1768393325843,0.04233071,144.34,144.3,9.67134686]
[1768393328139,0.04233071,144.34,144.3,8.99356449]
[1768393330334,0.04233071,144.34,144.3,6.92983143]
[1768393330529,0.04233071,144.32,144.29,6.93022531]
[1768393332553,30.04233071,144.32,144.29,6.93022531]
[1768393333849,30.04233071,144.32,144.28,7.64500045]
[1768393334035,0.04233071,144.31,144.28,7.64500045]
[1768393334352,30.04233071,144.31,144.28,7.64500045]
[1768393334653,30.04233071,144.31,144.28,8.99457047]
[1768393335732,0.04233071,144.31,144.28,9.67798952]
[1768393335934,0.04233071,144.32,144.28,9.67798952]
[1768393336255,30.04233071,144.32,144.28,9.67798952]
[1768393337736,0.04233071,144.32,144.28,9.67798952]
[1768393338655,0.04233071,144.32,144.28,7.61425646]
[1768393344141,0.04233071,144.32,144.28,9.67798952]
[1768393346758,0.04233071,144.32,144.29,0.70071933]
[1768393347156,0.04233071,144.32,144.29,7.63103348]
[1768393347462,0.04233071,144.33,144.29,7.63103348]
[1768393347662,0.04233071,144.33,144.29,9.69476654]
[1768393348964,5.18541268,144.32,144.29,9.69476654]
[1768393349161,0.04233071,144.33,144.29,9.69476654]
[1768393349658,5.18541665,144.32,144.29,9.69476654]
[1768393349863,0.04233071,144.33,144.29,9.69476654]
[1768393350770,0.04233071,144.33,144.29,7.63103348]
[1768393351070,0.04233071,144.33,144.3,0.70071933]
[1768393351274,0.04233071,144.34,144.31,0.70071933]
[1768393351462,16.41999192,144.35,144.32,0.70071933]
[1768393351651,5.18492889,144.34,144.32,0.70071933]
[1768393352162,16.46232263,144.35,144.32,0.70071933]
[1768393352574,5.1848811,144.34,144.32,0.70071933]
[1768393353164,16.46232263,144.35,144.32,7.62960098]
[1768393353362,5.1850859,144.34,144.32,7.62960098]
[1768393353553,16.46232263,144.35,144.32,7.62960098]
[1768393353747,16.41999192,144.35,144.33,2.76445239]
[1768393354070,16.41999192,144.35,144.34,0.70071933]
[1768393354645,16.41999192,144.35,144.33,2.76445239]
[1768393355263,16.41999192,144.35,144.33,0.70071933]
[1768393356678,0.1,144.37,144.35,0.71042798]
[1768393356891,0.1,144.37,144.36,2.06373306]
[1768393357168,0.1,144.37,144.35,2.77416104]
[1768393357373,0.5495011,144.38,144.36,2.74640235]
[1768393358281,0.5495011,144.38,144.36,9.6733437]
[1768393359276,0.5495011,144.38,144.36,7.60961064]
[1768393359775,0.5495011,144.38,144.36,6.92694135]
[1768393360078,1.26438621,144.38,144.36,6.92694135]
[1768393363766,1.26438621,144.38,144.36,6.8669414]
[1768393367088,1.26438621,144.38,144.35,7.51012028]
[1768393368485,0.5495011,144.38,144.37,0.58266929]
[1768393368683,0.5495011,144.38,144.37,0.52266935]
[1768393368884,0.5495011,144.38,144.36,6.9271259]
[1768393369068,0.71488511,144.39,144.36,6.90081376]
[1768393371488,0.71488511,144.39,144.35,10.67297584]
[1768393371697,0.71488511,144.39,144.36,0.52266935]
[1768393371893,0.71488511,144.37,144.34,6.92788518]
[1768393372076,0.71488511,144.37,144.35,6.92755848]
[1768393373801,0.81488511,144.4,144.36,0.52266935]
[1768393375103,0.81488511,144.4,144.36,7.44945373]
[1768393376388,0.81488511,144.4,144.36,10.67238146]
[1768393376589,0.81488511,144.4,144.36,7.44945373]
[1768393376792,0.81488511,144.4,144.36,10.67238146]
[1768393378408,0.81488511,144.4,144.36,7.44945373]
[1768393381005,0.81488511,144.4,144.37,0.52266935]
[1768393382307,0.81488511,144.4,144.37,3.74559708]
[1768393383606,0.81488511,144.4,144.38,6.92616705]
[1768393383812,0.1,144.4,144.38,7.4488364]
[1768393386014,0.704621,144.43,144.39,0.52266935]
[1768393386396,0.704621,144.43,144.38,27.98718177]
[1768393386589,0.704621,144.43,144.38,27.46451242]
[1768393387011,0.704621,144.43,144.38,27.98718177]
[1768393387308,0.704621,144.43,144.39,0.52266935]
[1768393388317,0.704621,144.43,144.4,6.92520775]
[1768393388821,0.704621,144.43,144.4,7.4478771]
[1768393389018,0.1,144.44,144.41,0.52266935]
[1768393389315,0.804621,144.44,144.4,7.4478771]
[1768393390094,0.804621,144.44,144.41,7.44711981]
[1768393390296,0.1,144.44,144.42,0.52266935]
[1768393391119,0.1,144.44,144.41,7.44711981]
[1768393391904,0.1,144.44,144.42,0.52266935]
[1768393392303,0.1,144.44,144.42,7.44671026]
[1768393395501,0.804621,144.44,144.42,6.92404091]
[1768393397607,0.704621,144.47,144.44,0.42266935]
[1768393397814,0.704621,144.47,144.43,3.64559708]
[1768393398323,0.704621,144.47,144.43,0.42266935]
[1768393399004,0.704621,144.47,144.42,24.65733205]
[1768393399205,0.704621,144.47,144.42,27.88025978]
[1768393399621,0.704621,144.47,144.45,3.22292773]
[1768393399925,0.704621,144.47,144.44,0.42266935]
[1768393400308,0.704621,144.47,144.43,3.64559708]
[1768393400812,0.704621,144.47,144.44,6.92328994]
[1768393404521,0.69442109,144.46,144.43,6.92365606]
[1768393405822,0.69442109,144.46,144.43,7.34632541]
[1768393406324,0.69442109,144.46,144.42,6.92424871]
[1768393406704,0.69442109,144.46,144.42,7.34691806]
[1768393411325,0.66442109,144.46,144.42,7.34691806]
[1768393412430,17.30166322,144.5,144.44,0.45266935]
[1768393412617,3.22292773,144.49,144.44,0.45266935]
[1768393412819,3.22292773,144.48,144.44,0.45266935]
[1768393413018,3.22292773,144.48,144.43,0.45266935]
[1768393413527,0.69442109,144.47,144.44,6.92328994]
[1768393415936,0.66328662,144.46,144.44,6.92328994]
[1768393416230,0.63328662,144.46,144.44,6.92328994]
[1768393416532,0.6032866,144.46,144.43,7.63958767]
[1768393421335,0.6032866,144.46,144.43,10.8625154]
[1768393421523,0.5732866,144.46,144.43,10.8625154]
[1768393422938,0.5732866,144.46,144.43,7.63958767]
[1768393423132,0.54328658,144.46,144.43,7.63958767]
[1768393423328,0.51328658,144.46,144.43,7.63958767]
[1768393423924,16.17854779,144.52,144.44,0.7160349]
[1768393424133,3.22292773,144.49,144.44,0.7160349]
[1768393425342,0.66328662,144.48,144.45,6.92281066]
[1768393426318,0.66328662,144.47,144.44,6.92308668]
[1768393426526,0.66328662,144.46,144.44,6.92308668]
[1768393427316,0.66328662,144.47,144.44,7.63912158]
[1768393429827,0.66328662,144.48,144.45,0.7160349]
[1768393431720,0.66328662,144.48,144.44,6.92308668]
[1768393431920,0.66328662,144.48,144.44,7.63912158]
[1768393433524,0.66328662,144.48,144.45,2.06038961]
[1768393434419,0.66328662,144.48,144.45,6.92246393]
[1768393434616,0.66328662,144.48,144.45,8.98285354]
[1768393435221,0.66328662,144.48,144.45,9.69888844]
[1768393437437,0.66328662,144.48,144.45,7.63849883]
[1768393437623,0.66328662,144.48,144.45,6.92246393]
[1768393438043,0.66328662,144.48,144.45,7.63849883]
[1768393440231,0.66328662,144.48,144.44,7.63910759]
[1768393440542,0.66328662,144.48,144.44,9.6994972]
[1768393441442,0.66328662,144.48,144.44,7.63910759]
[1768393441634,0.66328662,144.48,144.44,9.6994972]
[1768393442950,5.84737651,144.47,144.44,9.6994972]
[1768393443145,0.66328662,144.47,144.44,9.6994972]
[1768393444747,6.92097201,144.49,144.45,2.06038961]
[1768393444934,5.18467251,144.48,144.45,1.33538961]
[1768393445135,6.92097201,144.49,144.45,1.33538961]
[1768393445340,5.18467425,144.48,144.44,7.63910759]
[1768393445539,6.92097201,144.49,144.45,0.65650876]
[1768393445738,5.18463506,144.48,144.45,0.65650876]
[1768393445940,6.92041522,144.5,144.45,0.65650876]
[1768393446247,5.18463683,144.49,144.45,2.71689837]
[1768393446451,5.18463683,144.48,144.45,2.71689837]
[1768393446630,0.18404399,144.49,144.45,2.71689837]
[1768393446830,5.18461097,144.48,144.45,2.71689837]
[1768393447044,0.18404399,144.49,144.46,0.65650876]
[1768393447337,5.18461097,144.48,144.47,0.65650876]
[1768393448048,5.18461097,144.48,144.46,0.65650876]
[1768393448248,7.10445921,144.5,144.46,2.71689837]
[1768393448440,5.1837899,144.49,144.46,2.71689837]
[1768393448642,7.10445921,144.5,144.46,2.71689837]
[1768393448847,5.18378813,144.49,144.46,2.71689837]
[1768393449152,0.18404399,144.5,144.46,9.63909047]
[1768393449350,5.18373822,144.49,144.46,9.63909047]
[1768393449545,0.18404399,144.49,144.47,2.06038961]
[1768393449750,0.18404399,144.49,144.46,9.63909047]
[1768393450134,0.18404399,144.49,144.46,8.98258171]
[1768393450453,0.18404399,144.49,144.46,2.06038961]
[1768393450632,0.18404399,144.51,144.46,0.65650876]
[1768393450828,5.36701072,144.5,144.46,0.65650876]
[1768393451041,5.36701072,144.49,144.46,2.71689837]
[1768393451337,0.18404399,144.49,144.46,2.71689837]
[1768393451536,18.2389374,144.52,144.46,2.71689837]
[1768393451740,0.18404399,144.5,144.46,2.71689837]
[1768393451939,5.18271607,144.49,144.46,2.71689837]
[1768393454458,5.36676006,144.49,144.46,0.65650876]
[1768393454647,0.18404399,144.49,144.46,0.65650876]
[1768393460538,0.18404399,144.49,144.44,2.06038961]
[1768393460539,5.36664588,144.48,144.44,0.71067513]
[1768393460743,0.18404399,144.48,144.44,0.71067513]
[1768393462365,0.18404399,144.47,144.44,0.71067513]
[1768393464774,2.2444336,144.47,144.44,0.71067513]
[1768393465071,0.18404399,144.47,144.44,0.71067513]
[1768393465268,2.2444336,144.47,144.44,0.71067513]
[1768393465876,2.2444336,144.46,144.42,0.71067513]
[1768393466376,0.18404399,144.46,144.42,0.71067513]
[1768393467370,9.53185406,144.49,144.42,2.77106474]
[1768393467558,5.36682489,144.48,144.44,0.71067513]
[1768393467762,0.18404399,144.48,144.44,0.71067513]
[1768393467962,0.18404399,144.48,144.44,2.77106474]
[1768393468168,0.18404399,144.48,144.45,0.71067513]
[1768393469378,102.9,144.5,144.43,0.71067513]
[1768393469379,2.2444336,144.47,144.43,0.71067513]
[1768393469562,0.18404399,144.47,144.43,0.71067513]
[1768393469757,0.18404399,144.49,144.45,0.71067513]
[1768393469969,5.18238154,144.48,144.45,0.71067513]
[1768393470173,0.18404399,144.49,144.45,0.71067513]
[1768393470371,5.18237628,144.48,144.45,0.71067513]
[1768393470583,2.2444336,144.49,144.45,0.71067513]
[1768393470775,5.18245859,144.48,144.45,0.71067513]
[1768393470963,2.2444336,144.49,144.45,0.71067513]
[1768393471165,5.18246388,144.48,144.45,0.71067513]
[1768393471474,2.2444336,144.49,144.45,7.63321927]
[1768393471659,5.18255132,144.48,144.45,7.63321927]
[1768393471859,2.2444336,144.49,144.45,7.63321927]
[1768393472082,0.18404399,144.51,144.47,0.71067513]
[1768393472263,0.18404399,144.51,144.47,2.77106474]
[1768393472466,0.18404399,144.51,144.48,2.77106474]
[1768393472882,0.18404399,144.51,144.48,0.71067513]
[1768393473178,0.28404399,144.53,144.48,0.71067513]
[1768393473382,0.18404399,144.52,144.48,0.71067513]
[1768393474074,0.18404399,144.52,144.48,2.77106474]
[1768393474575,7.10358574,144.52,144.48,9.69225352]
[1768393476281,7.10358574,144.52,144.48,7.63186391]
[1768393477962,7.10418345,144.51,144.48,0.71067513]
[1768393478174,9.16457306,144.51,144.47,0.67970164]
[1768393478366,0.18404399,144.5,144.47,0.67970164]
[1768393478568,2.2444336,144.48,144.44,0.67970164]
[1768393478778,2.06038961,144.46,144.44,0.67970164]
[1768393478963,2.06038961,144.47,144.44,0.67970164]
[1768393479163,2.2444336,144.48,144.44,7.60295404]
[1768393479482,0.18404399,144.46,144.44,6.9232524]
[1768393479864,2.06038961,144.47,144.44,6.9232524]
[1768393480059,2.06038961,144.47,144.44,7.60295404]
[1768393481168,7.10558713,144.48,144.44,7.60295404]
[1768393481485,9.16597674,144.48,144.44,7.60295404]
[1768393482987,9.16597674,144.48,144.45,0.67970164]
[1768393485592,0.18404399,144.49,144.45,0.67970164]
[1768393485792,2.2444336,144.49,144.45,0.67970164]
[1768393486392,0.18404399,144.49,144.45,0.67970164]
[1768393486593,2.2444336,144.49,144.45,0.67970164]
[1768393487993,9.08076281,144.48,144.45,0.67970164]
[1768393488294,0.18319355,144.47,144.44,6.9232524]
[1768393488501,0.18319355,144.47,144.44,7.60295404]
[1768393488682,6.9213732,144.48,144.44,7.60295404]
[1768393488886,6.9213732,144.48,144.45,0.67970164]
[1768393489591,9.16542956,144.49,144.45,7.6023832]
[1768393489773,9.16542956,144.49,144.45,0.67970164]
[1768393490492,7.10503995,144.49,144.45,0.67970164]
[1768393490685,9.16542956,144.49,144.45,0.67970164]
[1768393490876,7.10503995,144.49,144.45,7.60240063]
[1768393492097,10.32400262,144.49,144.45,7.60240063]
[1768393492797,10.32400262,144.49,144.45,0.67970164]
[1768393495103,0.099,144.48,144.44,6.9231927]
[1768393495401,0.18319355,144.47,144.44,7.60289434]
[1768393495598,0.15319355,144.47,144.44,7.60289434]
[1768393495778,3.21896267,144.49,144.45,0.67970164]
[1768393497504,7.07551038,144.48,144.45,0.67970164]
[1768393497800,6.92077645,144.5,144.47,0.67970164]
[1768393497999,23.17340209,144.52,144.48,0.67970164]
[1768393498200,5.17447745,144.51,144.48,0.67970164]
[1768393498400,0.0693,144.52,144.48,0.67970164]
[1768393498704,5.17417497,144.51,144.48,0.67970164]
[1768393498898,0.15319655,144.51,144.48,0.67970164]
[1768393499910,6.99055418,144.5,144.46,7.60203308]
[1768393500405,6.99055418,144.5,144.47,0.67970164]
[1768393500898,6.92041522,144.5,144.47,0.67970164]
[1768393502886,6.98971522,144.5,144.46,0.67970164]
[1768393503592,20.51923578,144.51,144.46,0.67970164]
[1768393503787,5.17410037,144.5,144.46,0.67970164]
[1768393504108,20.51923578,144.51,144.46,0.67970164]
[1768393504325,5.17425395,144.5,144.46,0.67970164]
[1768393504607,6.92041522,144.5,144.46,0.67970164]
[1768393506109,17.3850171,144.51,144.46,0.67970164]
[1768393506312,5.17431314,144.5,144.46,0.67970164]
[1768393506499,20.60397977,144.51,144.46,0.67970164]
[1768393506809,5.24343255,144.5,144.46,0.67970164]
[1768393507012,0.0693,144.5,144.46,0.67970164]
[1768393508295,20.60397977,144.51,144.46,0.67970164]
[1768393508495,6.92089417,144.49,144.46,0.67970164]
[1768393509092,6.91993633,144.51,144.48,0.7073205]
[1768393510291,10.22316417,144.52,144.48,0.7073205]
[1768393510498,5.24247378,144.51,144.48,0.7073205]
[1768393510704,0.0693,144.51,144.48,0.7073205]
[1768393511213,0.08458955,144.5,144.46,0.7073205]
[1768393511415,0.08458955,144.5,144.47,0.7073205]
[1768393511913,3.30370666,144.51,144.47,0.7073205]
[1768393512215,3.30370666,144.51,144.46,6.92223912]
[1768393512216,6.98971522,144.5,144.46,7.62955962]
[1768393513012,6.98971522,144.5,144.47,0.7073205]
[1768393513315,0.0693,144.5,144.47,0.7073205]
[1768393513516,0.08474399,144.51,144.47,0.7073205]
[1768393513709,3.30370666,144.51,144.47,0.7073205]
[1768393514212,0.08474399,144.51,144.47,0.7073205]
[1768393514416,0.08474399,144.51,144.46,6.92223912]
[1768393514417,0.0693,144.5,144.46,7.62955962]
[1768393514916,3.28826267,144.5,144.46,0.7073205]
[1768393515219,24.30284528,144.52,144.48,0.7073205]
[1768393515406,5.24379576,144.51,144.48,0.7073205]
[1768393515600,0.0693,144.51,144.48,0.7073205]
[1768393515802,3.28826267,144.51,144.48,0.7073205]
[1768393516103,0.0693,144.51,144.48,0.7073205]
[1768393518002,27.43706396,144.52,144.48,0.7073205]
[1768393518222,5.17418223,144.51,144.48,0.7073205]
[1768393518403,24.21810129,144.52,144.48,0.7073205]
[1768393518721,5.17443637,144.51,144.48,0.7073205]
[1768393518897,27.43706396,144.52,144.48,0.7073205]
[1768393519095,5.17443814,144.51,144.48,0.7073205]
[1768393519402,3.21896267,144.51,144.48,0.7073205]
[1768393520524,24.28740129,144.52,144.48,0.7073205]
[1768393520720,3.21896267,144.5,144.48,0.7073205]
[1768393521107,3.30355222,144.51,144.48,0.7073205]
[1768393521725,5.17612911,144.5,144.48,0.7073205]
[1768393521903,3.30355222,144.51,144.48,0.7073205]
[1768393522105,5.17613088,144.5,144.48,0.7073205]
[1768393522305,3.30355222,144.51,144.48,0.7073205]
[1768393522609,5.17664268,144.5,144.48,0.7073205]
[1768393522924,6.92041522,144.5,144.48,0.7073205]
[1768393523802,6.92041522,144.5,144.45,6.92279233]
[1768393524005,0.16246974,144.49,144.45,6.92279233]
[1768393524415,10.83733153,144.5,144.45,6.92279233]
[1768393525222,7.61836886,144.5,144.45,6.92279233]
[1768393525428,10.83733153,144.5,144.45,6.92279233]
[1768393525835,10.83733153,144.5,144.46,0.69569852]
[1768393526729,10.13937789,144.5,144.46,0.69569852]
[1768393526911,10.13937789,144.5,144.47,0.69569852]
[1768393527312,6.92041522,144.5,144.47,0.69569852]
[1768393527713,7.08288496,144.5,144.47,0.69569852]
[1768393527914,0.69795364,144.51,144.47,0.65793551]
[1768393528116,0.69795364,144.51,144.47,7.57954216]
[1768393528117,7.61789809,144.51,144.47,7.57954216]
[1768393529606,10.83686076,144.51,144.47,7.57954216]
[1768393529806,0.69795364,144.5,144.47,7.57954216]
[1768393530218,0.69795364,144.5,144.47,7.51954218]
[1768393535518,7.60472668,144.51,144.47,7.51954218]
[1768393535709,7.60472668,144.51,144.48,0.59793553]
[1768393536130,10.82368935,144.51,144.47,7.51954218]
[1768393536317,10.82422281,144.5,144.47,7.51954218]
[1768393536715,7.60526014,144.5,144.47,7.51954218]
[1768393537034,0.68478223,144.5,144.47,7.51954218]
[1768393539338,7.60535778,144.5,144.47,0.59793553]
[1768393540235,7.6049386,144.51,144.48,0.59793553]
[1768393540534,7.6049386,144.51,144.47,7.51965736]
[1768393541115,0.68478223,144.5,144.47,7.51965736]
[1768393542032,7.60526239,144.5,144.47,7.51965736]
[1768393549747,7.60526239,144.5,144.47,0.59793553]
[1768393551653,0.68478223,144.5,144.47,0.59793553]
[1768393552148,0.68478223,144.5,144.45,3.21896267]
[1768393553049,0.68478223,144.5,144.42,12.62]
[1768393553250,0.68478223,144.5,144.45,3.21896267]
[1768393553445,0.68478223,144.5,144.45,2.05975926]
[1768393560184,0.68478223,144.5,144.42,12.62]
[1768393560466,0.68478223,144.5,144.45,2.05975926]
[1768393561445,0.68478223,144.5,144.44,2.05975926]
[1768393565269,0.68478223,144.5,144.43,2.05975926]
[1768393565451,7.59955389,144.49,144.45,6.92281066]
[1768393567443,0.67865972,144.49,144.45,6.92281066]
[1768393567775,0.67865972,144.49,144.45,8.98256992]
[1768393570656,0.67865972,144.49,144.45,6.92281066]
[1768393571072,0.67865972,144.49,144.43,17.30864652]
[1768393571073,7.59959826,144.49,144.43,17.30864652]
[1768393571278,0.67865972,144.48,144.43,19.36840578]
[1768393571440,0.67865972,144.48,144.43,17.30864652]
[1768393572367,7.6000666,144.48,144.43,24.23241582]
[1768393573948,7.6000666,144.48,144.41,24.23654871]
[1768393574148,7.6000666,144.48,144.42,2.05975926]
[1768393575979,0.67865972,144.47,144.43,6.9237693]
[1768393576446,0.67865972,144.47,144.43,8.98352856]